Cogmind - Beta 10.2 @@@ ROGUE MODE // 2021.03.30 @ 09:56:45 Player: Slaanesh Result: Destroyed by G-34 Mercenary with Small Laser Performance ------------- Evolutions (1) 500 Regions Visited (3) 600 Robots Destroyed (15) 75 Value Destroyed (348) 348 Prototype IDs (2) 40 Alien Tech Used (0) 0 Bonus (0) 0 TOTAL SCORE: 1563 Bonus ------- None Cogmind --------- Core Integrity 0/400 Matter 286/300 Energy 100/100 System Corruption 0% Temperature Cool (6) Movement Core (300) Ox5 Location -9/Materials Parts ------- > --- POWER (1) -------- (None) > --- PROPULSION (4) --- (None) > --- UTILITY (2) ------ Large Storage Unit Utility Shielding > --- WEAPON (2) ------- (None) > --- INVENTORY (10) --- Sensor Array Improved Targeting Computer Improved Targeting Computer Peak State ------------ > --- POWER ------------ Light Ion Engine > --- PROPULSION ------- Wheel Armored Wheel Armored Wheel Armored Wheel > --- UTILITY ---------- Large Storage Unit Utility Shielding > --- WEAPON ----------- EMP Blaster Mining Claw > --- INVENTORY -------- Light Ion Engine Light Ion Engine Armored Wheel Sensor Array Improved Targeting Computer Improved Targeting Computer EMP Blaster [Rating: 14] Favorites ----------- Power Light Ion Engine Engine Light Ion Engine Propulsion Wheel Wheel Wheel Utility Large Storage Unit Storage Large Storage Unit Protection Utility Shielding Weapon Small Laser Energy Gun Small Laser Launcher EMP Blaster Slashing Weapon Mining Claw Build | -11 -10 -10 -9 ------- Run | Scr Mat Min Mat Slots Evolved 2 | . . . 2 Power . | . . . . Propulsion 2 | . . . 2 Utility . | . . . . Weapon . | . . . . Parts Attached 20 | 6 7 . 7 Power 3 | 1 . . 2 Engine 3 | 1 . . 2 Core . | . . . . Reactor . | . . . . Propulsion 6 | 2 . . 4 Treads . | . . . . Leg . | . . . . Wheel 6 | 2 . . 4 Hover . | . . . . Flight . | . . . . Utility 3 | 1 2 . . Device . | . . . . Storage 2 | 1 1 . . Processor . | . . . . Hackware . | . . . . Protection 1 | . 1 . . Artifact . | . . . . Weapon 8 | 2 5 . 1 Energy Gun 4 | 2 2 . . Energy Cannon . | . . . . Ballistic Gun . | . . . . Ballistic Cannon . | . . . . Launcher 3 | . 2 . 1 Special Weapon . | . . . . Impact Weapon . | . . . . Slashing Weapon 1 | . 1 . . Piercing Weapon . | . . . . Special Melee Weapon . | . . . . Unidentified Prototypes . | . . . . Parts Lost 11 | . 1 . 10 Power 2 | . . . 2 Propulsion 5 | . . . 5 Utility . | . . . . Weapon 4 | . 1 . 3 Highest Loss Streak 7 | . 1 . 7 Average Slot Usage (%) 93 | . 96 100 88 Engine 12 | . 14 14 10 Wheel 30 | . 28 28 35 Storage 13 | . 14 14 11 Protection 11 | . 11 14 11 Energy Gun 15 | . 24 . . Launcher 4 | . 1 14 8 Slashing Weapon 5 | . 1 14 10 Naked Turns . | . . . . Heaviest Build 26 | 9 26 26 26 Greatest Support 50 | 26 26 26 50 Greatest Overweight (x) 2 | 2 . . . Average Overweight (x) . | . . . . Largest Inventory Capacity 10 | 6 10 10 10 Average Capacity 9 | 5 9 10 10 Most Carried 10 | 1 10 10 9 Average Carried 5 | . 4 10 6 Final Capacity 10 | 6 10 10 10 Final Carried 10 | 1 10 10 3 Class Distribution -------------------- 100% | Mutant Dominant Class ---------------- Mutant | -10/Materials Mutant | -10/Mines Mutant | -9/Materials Resources | -11 -10 -10 -9 ----------- Run | Scr Mat Min Mat Matter Collected 393 | 246 44 . 103 Remotely . | . . . . Salvage Created 498 | . 180 . 318 Parts 34 | . 8 . 26 Haulers Intercepted . | . . . . Recyclers Shooed . | . . . . Parts Field Recycled . | . . . . Retrieved Matter . | . . . . Parts Self-Destructed . | . . . . Prevented . | . . . . Kills | -11 -10 -10 -9 ------- Run | Scr Mat Min Mat Combat Hostiles Destroyed 10 | . 4 . 6 Melee 3 | . . . 3 Guns 4 | . 4 . . AOE 3 | . . . 3 Classes Destroyed 7 | . 2 . 5 Worker 1 | . . . 1 Builder 1 | . . . 1 Tunneler 1 | . . . 1 Watcher 2 | . 1 . 1 Swarmer 3 | . . . 3 Grunt 5 | . 4 . 1 Sentry 2 | . . . 2 Best Kill Streak 4 | . 2 . 4 Combat Bots Only 2 | . 2 . 2 Max Kills in Single Turn 2 | . 1 . 2 Gunslinging . | . . . . Exploded 1 | . . . 1 Melee 1 | . . . 1 Uniques/NPCs Destroyed . | . . . . Combat | -11 -10 -10 -9 -------- Run | Scr Mat Min Mat Damage Taken 1445 | . 174 . 1271 Core 460 | . 50 . 410 Absorbed by Shields . | . . . . Core Remaining (%) 90 | 100 . 80 . Volleys Fired 54 | 2 37 . 15 Largest 2 | 2 2 . 1 Hottest 80 | 80 80 . 33 Shots Fired 85 | 4 66 . 15 Gun 70 | 4 66 . . Cannon . | . . . . Launcher 15 | . . . 15 Special . | . . . . Kinetic . | . . . . Thermal 70 | 4 66 . . Explosive . | . . . . Electromagnetic 15 | . . . 15 Robot Hit Streak 14 | . 14 . 6 Robot Miss Streak 4 | . 4 . 2 Penetration Max . | . . . . Secondary Targets 1 | . 1 . . Max Gunslinging Chain 1 | . 1 . . Shots Hit Robots 48 | . 21 . 27 Core Hits 23 | 1 10 . 12 Critical Hits 1 | . . . 1 Critical Kills . | . . . . Critical Parts Destroyed 1 | . . . 1 Melee Attacks 28 | . . . 28 Impact . | . . . . Slashing 28 | . . . 28 Piercing . | . . . . Sneak Attacks 1 | . . . 1 Combat Hostiles . | . . . . Follow-up Attacks . | . . . . Damage Inflicted 1125 | 10 214 . 901 Guns 224 | 10 214 . . Cannons . | . . . . Explosions 418 | . . . 418 Melee 482 | . . . 482 Ramming 1 | . . . 1 Kinetic . | . . . . Thermal 255 | 10 214 . 31 Explosive . | . . . . Electromagnetic 387 | . . . 387 Impact . | . . . . Slashing 482 | . . . 482 Piercing . | . . . . Highest Corruption 3 | . 3 3 . Average Corruption 2 | . 2 3 . Corruption Purged . | . . . . Effects 10 | . 10 . . Message Errors 1 | . 1 . . Heat Flow Errors 1 | . 1 . . Data Loss (minor) 2 | . 2 . . Targeting Errors 4 | . 4 . . Weapon Failures 2 | . 2 . . Overload Shots . | . . . . Overflow Damage 33 | . . . 33 Projectiles . | . . . . Explosions 17 | . . . 17 Melee 16 | . . . 16 Knockbacks . | . . . . Impact . | . . . . Kinetic . | . . . . Secondary . | . . . . Self-Inflicted Damage 28 | . . . 28 Shots 3 | . . . 3 Rammed 2 | . . . 2 Targets Rammed 2 | . . . 2 Kicked . | . . . . Crushed . | . . . . Highest Temperature 231 | 18 231 . 2 Average Temperature 74 | 12 79 . 2 Received Heat Transfer 375 | . 99 . 276 Siege Activations . | . . . . Robots Corrupted . | . . . . Combat Hostiles . | . . . . Parts Fried . | . . . . Impact Corruptions . | . . . . Robots Melted . | . . . . Combat Hostiles . | . . . . Parts Melted 2 | . 2 . . Heat Transferred 575 | 25 500 . 50 Parts Sabotaged . | . . . . Parts Stolen . | . . . . Parts Stripped . | . . . . Power Chain Reactions 2 | . . . 2 Missiles Intercepted . | . . . . Alert | -11 -10 -10 -9 ------- Run | Scr Mat Min Mat Peak Influence 136 | . 107 7 136 Initial 7 | . . 7 2 Average 30 | . 18 7 63 Maximum Alert Level . | . . . . Low Security (%) 100 | 100 100 100 100 Level 1 . | . . . . Level 2 . | . . . . Level 3 . | . . . . Level 4 . | . . . . Level 5 . | . . . . High Security . | . . . . Max Security . | . . . . Squads Dispatched 1 | . . . 1 Investigation . | . . . . Extermination . | . . . . Reinforcement 1 | . . . 1 Assault . | . . . . Garrison . | . . . . Intercept . | . . . . Construction Impeded . | . . . . Haulers Reinforced . | . . . . Stealth | -11 -10 -10 -9 --------- Run | Scr Mat Min Mat Distress Signals 1 | . 1 . . Communications Jammed . | . . . . Distress Signals . | . . . . Times Spotted 20 | . 6 . 14 Peak Tracking Total 3 | . 3 . 3 Tactical Retreats 1 | . . . 1 Traps | -11 -10 -10 -9 ------- Run | Scr Mat Min Mat Traps Triggered 2 | . 2 . . Indirectly . | . . . . Trap Hack Attempts . | . . . . Triggered . | . . . . Disarmed . | . . . . Reprogrammed . | . . . . Reused . | . . . . Traps Extracted . | . . . . Installed . | . . . . Triggered . | . . . . Machines | -11 -10 -10 -9 ---------- Run | Scr Mat Min Mat Machines Disabled . | . . . . Max in Single Turn . | . . . . Machines Sabotaged . | . . . . Garrisons Compromised . | . . . . Overloaded Fab Kills . | . . . . Fab Network Shutdowns . | . . . . Hacking | -11 -10 -10 -9 --------- Run | Scr Mat Min Mat Machines Accessed 9 | . 5 . 4 Terminals 7 | . 5 . 2 Fabricators . | . . . . Repair Stations 1 | . . . 1 Recycling Units . | . . . . Scanalyzers 1 | . . . 1 Garrison Access . | . . . . Total Hacks 18 | . 10 . 8 Successful 12 | . 5 . 7 Failed 6 | . 5 . 1 Catastrophic . | . . . . Database Lockouts . | . . . . Manual 6 | . 5 . 1 Terminals 12 | . 10 . 2 Fabricators . | . . . . Repair Stations 1 | . . . 1 Recycling Units . | . . . . Scanalyzers 5 | . . . 5 Garrison Access . | . . . . Terminal Hacks 6 | . 5 . 1 Record 2 | . 2 . . Prototype ID Bank 1 | . 1 . . Emergency Access Points 1 | . 1 . . Alert Level 1 | . 1 . . Unreport Threat 1 | . . . 1 Fabricator Hacks . | . . . . Repair Station Hacks 1 | . . . 1 Scan Component 1 | . . . 1 Recycling Unit Hacks . | . . . . Scanalyzer 5 | . . . 5 Insert Component 3 | . . . 3 Analyze 2 | . . . 2 Garrison Access Hacks . | . . . . Unauthorized Hacks . | . . . . Terminals . | . . . . Fabricators . | . . . . Repair Stations . | . . . . Recycling Units . | . . . . Scanalyzers . | . . . . Garrison Access . | . . . . Data Cores Recovered . | . . . . Used . | . . . . Hacking Detections 3 | . 1 . 2 Full Trace Events . | . . . . Feedback Events . | . . . . Feedback Blocked . | . . . . Robot Schematics Acquired . | . . . . Robots Built . | . . . . Matter . | . . . . Time . | . . . . Total Robot Build Rating . | . . . . Part Schematics Acquired 2 | . . . 2 Parts Built . | . . . . Matter . | . . . . Time . | . . . . Total Part Build Rating . | . . . . Parts Repaired . | . . . . Time . | . . . . Parts Recycled . | . . . . Recycled Matter . | . . . . Retrieved Matter . | . . . . Retrieved Components . | . . . . Parts Scanalyzed 2 | . . . 2 Part Schematics Acquired 2 | . . . 2 Parts Damaged . | . . . . Bothacking | -11 -10 -10 -9 ------------ Run | Scr Mat Min Mat Used RIF Installer . | . . . . Robots Hacked . | . . . . Non-combat . | . . . . Combat . | . . . . Robot Hacks Applied . | . . . . Relay Couplers Released . | . . . . Robots Rewired . | . . . . Allies Hacked . | . . . . Hacks Repelled . | . . . . Allies | -11 -10 -10 -9 -------- Run | Scr Mat Min Mat Total Allies . | . . . . Largest Group . | . . . . Highest-Rated Group . | . . . . Highest-Rated Ally . | . . . . Total Orders . | . . . . Ally Attacks . | . . . . Total Damage . | . . . . Kills . | . . . . Allies Corrupted . | . . . . Allies Melted . | . . . . Intel | -11 -10 -10 -9 ------- Run | Scr Mat Min Mat Robot Analysis Total . | . . . . Derelict Logs Recovered . | . . . . Drone Launches . | . . . . Drone Recoveries . | . . . . Exploration | -11 -10 -10 -9 ------------- Run | Scr Mat Min Mat Turns Passed 954 | 66 555 45 288 Spaces Moved 732 | 55 455 50 172 Core 22 | 22 . . . Treads . | . . . . Legs . | . . . . Wheels 710 | 33 455 50 172 Hover . | . . . . Flight . | . . . . Fastest Speed 50 | 50 90 90 86 Average Speed 89 | 85 90 90 88 Slowest Speed 150 | 150 90 90 90 Overloaded Moves . | . . . . Propulsion Burnouts . | . . . . Robots Hopped . | . . . . Cave-ins Triggered . | . . . . Exploration Rate (%) 25 | 4 58 22 18 Regions Visited 3 Branch Regions 1 Pre-discovered Areas . | . . . . Known Exits Taken . | . . . . Unknown Exits Taken 3 | 1 1 1 . Scrap Searched . | . . . . Spaces Dug . | . . . . Terrain Destroyed 10 | . . . 10 Melee . | . . . . Projectile . | . . . . AOE 10 | . . . 10 Terrain Rammed . | . . . . Walls Destroyed . | . . . . Machines Disabled . | . . . . Actions | -11 -10 -10 -9 --------- Run | Scr Mat Min Mat Total 884 | 67 535 49 233 Wait 18 | 2 8 . 8 Move 729 | 54 454 49 172 Hop . | . . . . Pick Up 22 | 2 20 . . Fast Attach 6 | 6 . . . Attach 11 | . 5 . 6 Detach . | . . . . Swap 3 | . 2 . 1 Drop 11 | 1 9 . 1 Fire 54 | 2 37 . 15 Melee 28 | . . . 28 Ram 2 | . . . 2 Kick . | . . . . Crush . | . . . . Escape Stasis . | . . . . Rewire . | . . . . Trap . | . . . . Miscellaneous . | . . . . Route ------- -11/Scrapyard -10/Materials (discovered 3 exits: *Mat x2 / [*Min]) -10/Mines -9/Materials History --------- Turn | Location | Event 5 | -11/Scrapyard | Discovered new exit (range 15) 67 | -11/Scrapyard | Entered Materials 246 | -10/Materials | Discovered new exit (range 13) 309 | -10/Materials | Build established: Mutant 530 | -10/Materials | Discovered new exit (range 4) 543 | -10/Materials | Discovered new exit (range 7) 622 | -10/Materials | Entered Mines 628 | -10/Mines | Assembled infested the area 634 | -10/Mines | Discovered new exit (range 15) 667 | -10/Mines | Entered Materials 667 | -9/Materials | Evolved 2 slots: Propulsion x2 935 | -9/Materials | Core integrity fell below 50% 950 | -9/Materials | Core integrity fell below 20% 955 | -9/Materials | Destroyed by G-34 Mercenary with Small Laser Last Messages --------------- 00914_ Y-45 Defender suffers critical hit. 00914_ Destroyed Beam Rifle. 00914_ R-06 Scavenger collects Wheel. 00917_ Arm. Wheel destroyed. 00918_ R-06 Scavenger collects Welding Torch. 00921_ Lgt. Ion Engine destroyed. 00923_ Arm. Wheel destroyed. 00923_ Y-45 Defender destroyed. 00923_ R-06 Scavenger collects Heat Sink. 00926_ R-06 Scavenger collects Imp. Ion Engine. 00928_ R-06 Scavenger collects Lgt. Treads. 00942_ Arm. Wheel severed. 00943_ Destroyed Imp. Ion Engine. 00944_ Arm. Wheel destroyed. 00945_ R-06 Scavenger collects Heat Sink. 00947_ Lgt. Ion Engine destroyed. 00947_ Mining Claw destroyed. 00949_ Slammed into L-31 Rogue. 00951_ R-06 Scavenger collects Arm. Wheel. 00952_ Slammed into G-34 Mercenary. Map ----- +----------------------------------------------------+ | ????# """ + # """ #???# ######### | | ????# """ # # """""#???# ## | | ????# """ # + """""#???# ## | | ????# ?# # """""#???# ## | | ?########### # """ #???# ########/## #### | | ?# ## # #???# #??# # #??? | | ?# ## # "T" #???# #??# = # #### | | ?# ## #####+####???# #??# / | | ?# # #### ######## #### " "" # | | ?# / =% [= + "R"" # """ | | ?# # T [ ################ """ # """ | | ?# # ### ##########?????######## """ | | ?# ######## # #????????????# | | ?# #?????## =+% "" #????????????# | | ?##########?????##%*# """#????????????# | | ??????????????####[=# S"#????????????# | | ?????????????##!! # #????????????# #### | | ?????????????#! # """ #????????????# #??? | | ?????????????#! # """ #????????????# #??? | | ?????????????#! # """ #????????????# #??? | | ?????????????#! # #????????????# #??? | | ?????????????##!! ##########????????????? +??? | | ??????????????#### ####????????####??????? ???? | | ?????????????????# ####### #?????????????? | | ?????????????????# g % #?????????????? | | ?????????????????#[ r @ l #?????????????? | | ?????????????????#!% w g #?????????????? | | ?????????????????# #######% #?????????????? | | ?????????????????## ##??????# ##?????????????? | | ??????????????????# #???????? #??????????????? | | ??????????????????# #????????? #??????????????? | | ??????????????????# #?????????? #??????????????? | | ??????????????????# #???????????#??????????????? | | ??????????????????# #??????????????????????????? | | ??????????????????# #??????????????????????????? | | ??????????????????# #??????????????????????????? | | ??????????????????# #??????????????????????????? | | ??????????????????# #??????????????????????????? | | ??????????????????? +??????????????????????????? | | ??????????????????? #??????????????????????????? | | ??????????????????? ???????????????????????????? | | ?????????????????????????????????????????????????? | | ?????????????????????????????????????????????????? | | ?????????????????????????????????????????????????? | | ?????????????????????????????????????????????????? | | ?????????????????????????????????????????????????? | | ?????????????????????????????????????????????????? | | ?????????????????????????????????????????????????? | | ?????????????????????????????????????????????????? | | ?????????????????????????????????????????????????? | +----------------------------------------------------+ Best States ------------- Heat Dissipation 28 Energy Generation 10 Energy Capacity 125 Matter Stores 300 Matter Capacity 300 Sight Range 16 Terrain Scan Density 10 Utility Shielding 33 Evasion (%) 50 Item Schematics ----------------- Arm. Wheel | -9/Materials | Scanalyzed EMP Blaster | -9/Materials | Scanalyzed Robot Schematics ------------------ None Fabricated ------------ Nothing Alien Tech Used ----------------- None Achievements -------------- None Challenges ------------ None Game ------ Seed DecoyUtilityShielding Manual? 0 Play Time 00:18:15 Cumulative 8.4 hours Start 2021.03.30 @ 08:47:38 End 2021.03.30 @ 09:56:45 Sessions 1 Manual Loads 0 Difficulty Rogue Special Mode None Game No. 16 Rogue 16 Adventurer 0 Explorer 0 Win Type - Total 0 Types 0/0/0/0/0/0/0/0/0 Lore% 16 Gallery% 19 Achievement% 17 Wizard Run 0 Options --------- ASCII 0 Keyboard 0 Movement Numpad Keybinds 0 Fullscreen 1 Font 18/CogNarrow Map View 76x50 Tactical HUD 1 Map Filters NONE Filters NONE Steam 1 RUN: 632406e8-d93c-4636-883b-e65264112b57